fUST/lending_fUST_20251029
["ID","MTS","AMOUNT","RATE_DAILY","PERIOD"]
[392613256,1761745846133,-642.67,0.00022465,2]
[392613258,1761745846142,-500.0,0.00022465,2]
[392613260,1761745846152,-493.04908276,0.00022465,2]
[392613263,1761745846164,-6.95091724,0.00022465,2]
[392613265,1761745846173,-998.54,0.00022465,2]
[392613267,1761745846183,-500.0,0.00022465,2]
[392613269,1761745846192,-500.0,0.00022465,2]
[392613271,1761745846201,-500.0,0.00022465,2]
[392613273,1761745846210,-500.0,0.00022465,2]
[392613275,1761745846219,-500.0,0.00022465,2]
[392613277,1761745846227,-500.0,0.00022465,2]
[392613279,1761745846236,-784.26,0.00022465,2]
[392613281,1761745846245,-500.0,0.00022465,2]
[392613283,1761745846254,-500.0,0.00022465,2]
[392613285,1761745846263,-736.88,0.00022465,2]
[392613287,1761745846272,-500.0,0.00022465,2]
[392613289,1761745846281,-1102.52,0.00022465,2]
[392613291,1761745846290,-632.89,0.00022465,2]
[392613293,1761745846299,-500.0,0.00022465,2]
[392613295,1761745846308,-500.0,0.00022465,2]
[392613297,1761745846317,-500.0,0.00022465,2]
[392613299,1761745846327,-723.41,0.00022465,2]
[392613301,1761745846336,-500.0,0.00022465,2]
[392613302,1761745846345,-500.0,0.00022465,2]
[392613304,1761745846355,-1384.5,0.00022465,2]
[392613306,1761745846364,-639.2,0.00022465,2]
[392613308,1761745846373,-886.37,0.00022465,2]
[392613310,1761745846382,-500.0,0.00022465,2]
[392613313,1761745846392,-500.0,0.00022465,2]
[392613314,1761745846401,-1698.96,0.00022465,2]
[392613316,1761745846412,-1545.51,0.00022465,2]
[392613318,1761745846421,-500.0,0.00022465,2]
[392613321,1761745846431,-500.0,0.00022465,2]
[392613323,1761745846440,-404.12863148,0.00022465,2]
[392613325,1761745846451,-95.87136852,0.00022465,2]
[392613327,1761745846461,-500.0,0.00022465,2]
[392613329,1761745846470,-500.0,0.00022465,2]
[392613331,1761745846479,-2852.57,0.00022465,2]
[392613333,1761745846489,-662.51,0.00022465,2]
[392613335,1761745846498,-500.0,0.00022465,2]
[392613337,1761745846509,-884.1,0.00022465,2]
[392613339,1761745846518,-500.0,0.00022465,2]
[392613341,1761745846527,-500.0,0.00022465,2]
[392613343,1761745846536,-500.0,0.00022465,2]
[392613345,1761745846545,-500.0,0.00022465,2]
[392613347,1761745846554,-500.0,0.00022465,2]
[392613349,1761745846563,-1079.48,0.00022465,2]
[392613351,1761745846573,-500.0,0.00022465,2]
[392613353,1761745846581,-500.0,0.00022465,2]
[392613355,1761745846591,-574.34,0.00022465,2]
[392613357,1761745846600,-500.0,0.00022465,2]
[392613359,1761745846609,-500.0,0.00022465,2]
[392613361,1761745846619,-500.0,0.00022465,2]
[392613363,1761745846628,-500.0,0.00022465,2]
[392613365,1761745846637,-500.0,0.00022465,2]
[392613367,1761745846646,-47.81739291,0.00022465,2]
[392613394,1761745846898,-5000.0,0.00019305,2]
[392613396,1761745846908,-2105.08,0.00022181,10]
[392613398,1761745846918,-4671.19260709,0.00022465,2]
[392613400,1761745846927,-500.0,0.00022465,2]
[392613402,1761745846936,-763.4,0.00022465,2]
[392613404,1761745846945,-717.33,0.00022465,2]
[392613406,1761745846955,-500.0,0.00022465,2]
[392613408,1761745846964,-759.86,0.00022465,2]
[392613410,1761745846973,-500.0,0.00022465,2]
[392613412,1761745846983,-1028.61,0.00022465,2]
[392613414,1761745846992,-1048.62,0.00022465,2]
[392613416,1761745847001,-500.0,0.00022465,2]
[392613418,1761745847010,-500.0,0.00022465,2]
[392613420,1761745847019,-285.9328581,0.00022465,2]
[392613422,1761745847028,-500.0,0.00022465,2]
[392613424,1761745847041,-524.12,0.00022465,2]
[392613426,1761745847050,-500.0,0.00022465,2]
[392613428,1761745847059,-234.13927374,0.00022465,2]
[392613430,1761745847069,-500.0,0.00022465,2]
[392613432,1761745847078,-500.0,0.00022465,2]
[392613434,1761745847087,-500.0,0.00022465,2]
[392613436,1761745847096,-1532.17,0.00022465,2]
[392613438,1761745847105,-1107.23,0.00022465,2]
[392613440,1761745847114,-1685.84,0.00022465,2]
[392613442,1761745847123,-500.0,0.00022465,2]
[392613444,1761745847132,-1181.96,0.00022465,2]
[392613446,1761745847140,-500.0,0.00022465,2]
[392613448,1761745847149,-500.0,0.00022465,2]
[392613450,1761745847160,-2526.85,0.00022465,2]
[392613452,1761745847169,-151.0,0.00022465,7]
[392613454,1761745847179,-151.0,0.00022465,7]
[392613456,1761745847188,-1095.97,0.00022465,2]
[392613458,1761745847198,-500.0,0.00022465,2]
[392613460,1761745847206,-500.0,0.00022465,2]
[392613462,1761745847215,-500.0,0.00022465,2]
[392613464,1761745847224,-1436.47,0.00022465,2]
[392613466,1761745847234,-500.0,0.00022465,2]
[392613468,1761745847245,-1803.55,0.00022465,2]
[392613470,1761745847254,-1161.42,0.00022465,2]
[392613472,1761745847262,-500.0,0.00022465,2]
[392613474,1761745847271,-500.0,0.00022465,8]
[392613476,1761745847281,-500.0,0.00022465,2]
[392613478,1761745847290,-516.77,0.00022465,2]
[392613480,1761745847299,-500.0,0.00022465,2]
[392613482,1761745847308,-591.34,0.00022465,2]
[392613484,1761745847317,-500.0,0.00022465,2]
[392613486,1761745847326,-500.0,0.00022465,2]
[392613488,1761745847335,-500.0,0.00022465,2]
[392613490,1761745847344,-500.0,0.00022465,2]
[392613492,1761745847353,-500.0,0.00022465,2]
[392613494,1761745847362,-1106.27,0.00022465,2]
[392613496,1761745847371,-500.0,0.00022505,5]
[392613498,1761745847380,-1000.0,0.00022521,2]
[392613500,1761745847390,-500.0,0.00022521,2]
[392613502,1761745847399,-1000.0,0.00022521,2]
[392613504,1761745847410,-501.23050413,0.00022521,2]
[392613506,1761745847419,-587.0,0.00022573,2]
[392613508,1761745847429,-1517.710696,0.000226,5]
[392613510,1761745847438,-1000.0,0.0002262,5]
[392613512,1761745847447,-260.0,0.00022635,2]
[392613514,1761745847456,-1000.0,0.0002264,5]
[392613516,1761745847465,-169.58352199,0.00022645,5]
[392613518,1761745847474,-1000.0,0.0002266,5]
[392613520,1761745847482,-1000.0,0.0002268,5]
[392613522,1761745847491,-1000.0,0.000227,5]
[392613524,1761745847500,-489.63890135,0.00022721,2]
[392613526,1761745847510,-500.0,0.00022721,2]
[392613528,1761745847519,-500.0,0.00022721,2]
[392613530,1761745847528,-500.0,0.00022721,2]
[392613532,1761745847538,-1000.0,0.00022721,2]
[392613534,1761745847548,-1000.0,0.00022721,2]
[392613535,1761745847558,-1000.0,0.00022721,2]
[392613536,1761745847567,-1000.71793057,0.00022721,2]
[392613537,1761745847577,-1000.0,0.00022721,2]
[392613538,1761745847586,-1000.0,0.00022721,2]
[392613539,1761745847595,-500.0,0.00022739,2]
[392613540,1761745847604,-500.0,0.00022739,2]
[392613541,1761745847615,-500.0,0.00022739,2]
[392613542,1761745847624,-500.0,0.00022739,2]
[392613543,1761745847634,-500.0,0.00022739,2]
[392613544,1761745847644,-556.98,0.00022739,2]
[392613545,1761745847655,-519.43,0.00022739,2]
[392613546,1761745847664,-500.0,0.00022739,2]
[392613548,1761745847674,-500.0,0.00022739,2]
[392613549,1761745847683,-500.0,0.00022739,2]
[392613551,1761745847692,-500.0,0.00022739,2]
[392613554,1761745847702,-500.0,0.00022739,2]
[392613555,1761745847711,-500.0,0.00022739,2]
[392613557,1761745847720,-500.0,0.00022739,2]
[392613559,1761745847729,-500.0,0.00022739,2]
[392613561,1761745847739,-502.29062547,0.00022739,2]
[392613564,1761745847749,-500.0,0.00022739,2]
[392613565,1761745847758,-501.97585279,0.00022739,2]
[392613567,1761745847767,-500.0,0.00022739,2]
[392613569,1761745847777,-180.33641888,0.00022739,2]
[392613572,1761745847787,-501.82923313,0.00022739,2]
[392613574,1761745847796,-500.0,0.00022739,2]
[392613575,1761745847805,-862.33134736,0.00022739,2]
[392613578,1761745847814,-3445.87606407,0.00022739,2]
[392613579,1761745847823,-500.0,0.00022739,2]
[392613582,1761745847833,-500.0,0.00022739,2]
[392613583,1761745847841,-582.39467766,0.00022739,2]
[392613586,1761745847851,-500.0,0.00022739,2]
[392613588,1761745847860,-500.0,0.00022739,2]
[392613590,1761745847869,-500.0,0.00022739,2]
[392613592,1761745847878,-500.0,0.00022739,2]
[392613593,1761745847887,-500.0,0.00022739,2]
[392613596,1761745847896,-631.37,0.00022739,2]
[392613597,1761745847906,-696.17,0.00022739,2]
[392613600,1761745847915,-500.0,0.00022739,2]
[392613601,1761745847924,-500.0,0.00022739,2]
[392613604,1761745847934,-500.0,0.00022739,2]
[392613606,1761745847943,-500.0,0.00022739,2]
[392613607,1761745847952,-508.27,0.00022739,2]
[392613609,1761745847962,-500.0,0.00022739,2]
[392613611,1761745847971,-500.0,0.00022739,2]
[392613613,1761745847981,-500.0,0.00022739,2]
[392613615,1761745847989,-500.0,0.00022739,2]
[392613617,1761745847999,-500.0,0.00022739,2]
[392613619,1761745848007,-500.0,0.00022739,2]
[392613621,1761745848017,-2535.53,0.00022739,2]
[392613623,1761745848026,-500.0,0.00022739,2]
[392613625,1761745848038,-500.0,0.00022739,2]
[392613627,1761745848048,-500.0,0.00022739,2]
[392613629,1761745848057,-500.0,0.00022739,2]
[392613631,1761745848067,-500.0,0.00022739,2]
[392613633,1761745848078,-500.0,0.00022739,2]
[392613635,1761745848088,-500.0,0.00022739,2]
[392613637,1761745848100,-500.0,0.00022739,2]
[392613639,1761745848109,-500.0,0.00022739,2]
[392613641,1761745848119,-500.0,0.00022739,2]
[392613643,1761745848129,-500.0,0.00022739,2]
[392613645,1761745848138,-500.0,0.00022739,2]
[392613662,1761745848290,-500.0,0.00022739,2]
[392613665,1761745848302,-500.0,0.00022739,2]
[392613667,1761745848311,-500.0,0.00022739,2]
[392613669,1761745848320,-500.0,0.00022739,2]
[392613671,1761745848330,-1068.42,0.00022739,2]
[392613673,1761745848339,-500.0,0.00022739,2]
[392613675,1761745848348,-500.0,0.00022739,2]
[392613677,1761745848357,-500.0,0.00022739,2]
[392613679,1761745848367,-500.0,0.00022739,2]
[392613681,1761745848375,-517.96,0.00022739,2]
[392613683,1761745848385,-1427.98,0.00022739,2]
[392613685,1761745848394,-500.0,0.00022739,2]
[392613687,1761745848405,-500.0,0.00022739,2]
[392613689,1761745848414,-610.91837344,0.00022739,2]
[392613691,1761745848423,-500.0,0.00022739,2]
[392613693,1761745848432,-500.0,0.00022739,2]
[392613695,1761745848441,-500.0,0.00022739,2]
[392613697,1761745848450,-500.0,0.00022739,2]
[392613699,1761745848459,-504.96363759,0.00022739,2]
[392613701,1761745848468,-500.0,0.00022739,2]
[392613703,1761745848477,-612.91,0.00022739,2]
[392613705,1761745848486,-500.0,0.00022739,2]
[392613707,1761745848495,-500.0,0.00022739,2]
[392613708,1761745848504,-500.0,0.00022739,2]
[392613710,1761745848514,-682.92,0.00022739,2]
[392613713,1761745848523,-500.0,0.00022739,2]
[392613714,1761745848532,-500.0,0.00022739,2]
[392613716,1761745848542,-1134.33,0.00022739,2]
[392613719,1761745848551,-500.0,0.00022739,2]
[392613720,1761745848559,-781.33,0.00022739,2]
[392613722,1761745848569,-500.0,0.00022739,2]
[392613724,1761745848579,-500.0,0.00022739,2]
[392613726,1761745848588,-603.01097111,0.00022739,2]
[392613728,1761745848597,-500.0,0.00022739,2]
[392613731,1761745848607,-500.0,0.00022739,2]
[392613732,1761745848616,-500.0,0.00022739,2]
[392613734,1761745848625,-500.0,0.00022739,2]
[392613736,1761745848634,-503.08052932,0.00022739,2]
[392613738,1761745848644,-500.0,0.00022739,2]
[392613741,1761745848654,-500.0,0.00022739,2]
[392613742,1761745848663,-500.0,0.00022739,2]
[392613745,1761745848673,-512.07,0.00022739,2]
[392613746,1761745848682,-500.0,0.00022739,2]
[392613748,1761745848691,-500.0,0.00022739,2]
[392613751,1761745848701,-500.0,0.00022739,2]
[392613753,1761745848710,-591.49,0.00022739,2]
[392613755,1761745848719,-500.0,0.00022739,2]
[392613756,1761745848728,-500.0,0.00022739,2]
[392613759,1761745848737,-500.0,0.00022739,2]
[392613761,1761745848748,-500.0,0.00022739,2]
[392613763,1761745848757,-500.0,0.00022739,2]
[392613765,1761745848766,-519.65,0.00022739,2]
[392613767,1761745848775,-500.0,0.00022739,2]
[392613769,1761745848784,-500.0,0.00022739,2]
[392613771,1761745848794,-500.0,0.00022739,2]
[392613773,1761745848803,-473.40536847,0.00022739,2]
[392613775,1761745848812,-500.0,0.00022739,2]
[392613777,1761745848821,-500.0,0.00022739,2]
[392613779,1761745848831,-500.0,0.00022739,2]
[392613780,1761745848840,-500.0,0.00022739,2]
[392613782,1761745848849,-500.0,0.00022739,2]
[392613784,1761745848858,-641.32401464,0.00022739,2]
[392613787,1761745848867,-851.89,0.00022739,2]
[392613789,1761745848876,-500.0,0.00022739,2]
[392613791,1761745848885,-500.0,0.00022739,2]
[392613792,1761745848894,-500.0,0.00022739,2]
[392613795,1761745848904,-500.0,0.00022739,2]
[392613797,1761745848914,-500.0,0.00022739,2]
[392613798,1761745848923,-683.32,0.00022739,2]
[392613801,1761745848932,-536.35,0.00022739,2]
[392613803,1761745848942,-500.0,0.00022739,2]
[392613805,1761745848951,-502.38483819,0.00022739,2]
[392613807,1761745848960,-500.0,0.00022739,2]
[392613809,1761745848969,-500.0,0.00022739,2]
[392613811,1761745848978,-934.41,0.00022739,2]
[392613813,1761745848987,-500.0,0.00022739,2]
[392613815,1761745848996,-500.0,0.00022739,2]
[392613817,1761745849006,-500.0,0.00022739,2]
[392613819,1761745849015,-500.0,0.00022739,2]
[392613821,1761745849025,-500.0,0.00022739,2]
[392613823,1761745849037,-510.26,0.00022739,2]
[392613825,1761745849046,-500.0,0.00022739,2]
[392613826,1761745849056,-500.0,0.00022739,2]
[392613828,1761745849065,-500.0,0.00022739,2]
[392613830,1761745849075,-500.0,0.00022739,2]
[392613832,1761745849084,-500.0,0.00022739,2]
[392613834,1761745849093,-500.0,0.00022739,2]
[392613836,1761745849102,-434.83241899,0.00022739,2]
[392613838,1761745849111,-500.0,0.00022739,2]
[392613840,1761745849120,-501.04700074,0.00022739,2]
[392613842,1761745849130,-500.0,0.00022739,2]
[392613844,1761745849139,-535.38,0.00022739,2]
[392613846,1761745849148,-500.0,0.00022739,2]
[392613848,1761745849159,-500.0,0.00022739,2]
[392613850,1761745849168,-500.0,0.00022739,2]
[392613852,1761745849178,-500.0,0.00022739,2]
[392613854,1761745849187,-500.0,0.00022739,2]
[392613856,1761745849197,-500.0,0.00022739,2]
[392613858,1761745849206,-500.0,0.00022739,2]
[392613860,1761745849215,-500.0,0.00022739,2]
[392613862,1761745849224,-500.0,0.00022739,2]
[392613864,1761745849234,-500.0,0.00022739,2]
[392613866,1761745849243,-500.0,0.00022739,2]
[392613868,1761745849252,-500.0,0.00022739,2]
[392613870,1761745849262,-500.0,0.00022739,2]
[392613872,1761745849271,-500.0,0.00022739,2]
[392613874,1761745849281,-500.0,0.00022739,2]
[392613876,1761745849290,-500.0,0.00022739,2]
[392613879,1761745849299,-500.0,0.00022739,2]
[392613881,1761745849308,-500.0,0.00022739,2]
[392613883,1761745849317,-500.0,0.00022739,2]
[392613885,1761745849326,-475.40764716,0.00022739,2]
[392613887,1761745849335,-762.74,0.00022739,2]
[392613888,1761745849345,-1014.53,0.00022739,2]
[392613891,1761745849354,-571.55400009,0.00022739,2]
[392613893,1761745849363,-500.0,0.00022739,2]
[392613894,1761745849372,-500.0,0.00022739,2]
[392613897,1761745849381,-500.0,0.00022739,2]
[392613899,1761745849391,-658.76,0.00022739,2]
[392613900,1761745849400,-500.0,0.00022739,2]
[392613903,1761745849414,-500.0,0.00022739,2]
[392613904,1761745849423,-627.1,0.00022739,2]
[392613906,1761745849432,-500.0,0.00022739,2]
[392613908,1761745849441,-500.0,0.00022739,2]
[392613910,1761745849450,-500.0,0.00022739,2]
[392613912,1761745849460,-500.0,0.00022739,2]
[392613915,1761745849470,-500.0,0.00022739,2]
[392613917,1761745849478,-1398.32,0.00022739,2]
[392613919,1761745849488,-500.0,0.00022739,2]
[392613920,1761745849497,-500.0,0.00022739,2]
[392613923,1761745849507,-500.0,0.00022739,2]
[392613925,1761745849516,-2267.35,0.00022739,2]
[392613927,1761745849525,-500.0,0.00022739,2]
[392613929,1761745849535,-741.95,0.00022739,2]
[392613931,1761745849544,-500.0,0.00022739,2]
[392613933,1761745849553,-500.0,0.00022739,2]
[392613935,1761745849562,-500.0,0.00022739,2]
[392613936,1761745849572,-1110.52,0.00022739,2]
[392613938,1761745849581,-500.0,0.00022739,2]
[392613941,1761745849591,-500.0,0.00022739,2]
[392613943,1761745849600,-500.0,0.00022739,2]
[392613945,1761745849609,-500.0,0.00022739,2]
[392613946,1761745849618,-500.0,0.00022739,2]
[392613948,1761745849628,-1326.51,0.00022739,2]
[392613951,1761745849638,-500.0,0.00022739,2]
[392613953,1761745849647,-500.0,0.00022739,2]
[392613955,1761745849658,-500.0,0.00022739,2]
[392613957,1761745849667,-891.99,0.00022739,2]
[392613958,1761745849676,-208.91402835,0.00022739,2]
[392613961,1761745849686,-984.33,0.00022739,2]
[392613963,1761745849695,-500.0,0.00022739,2]
[392613964,1761745849704,-500.0,0.00022739,2]
[392613966,1761745849714,-953.57,0.00022739,2]
[392613969,1761745849724,-613.2,0.00022739,2]
[392613970,1761745849733,-500.0,0.00022739,2]
[392613971,1761745849742,-775.09,0.00022739,2]
[392613972,1761745849751,-1509.25,0.00022739,2]
[392613973,1761745849761,-500.0,0.00022739,2]
[392613974,1761745849770,-773.16,0.00022739,2]
[392613975,1761745849779,-500.0,0.00022739,2]
[392613976,1761745849788,-2104.13,0.00022739,2]
[392613977,1761745849798,-824.4,0.00022739,2]
[392613978,1761745849807,-500.0,0.00022739,2]
[392613979,1761745849816,-500.0,0.00022739,2]
[392613980,1761745849825,-500.0,0.00022739,2]
[392613981,1761745849834,-500.0,0.00022739,2]
[392613982,1761745849843,-500.0,0.00022739,2]
[392613983,1761745849852,-500.0,0.00022739,2]
[392613984,1761745849862,-500.0,0.00022739,2]
[392613986,1761745849871,-500.0,0.00022739,2]
[392613988,1761745849881,-500.0,0.00022739,2]
[392613990,1761745849890,-642.67,0.00022739,2]
[392613992,1761745849899,-986.49,0.00022739,2]
[392613994,1761745849911,-502.52183764,0.00022739,2]
[392613996,1761745849923,-500.0,0.00022739,2]
[392613998,1761745849933,-998.54,0.00022739,2]
[392614000,1761745849943,-500.0,0.00022739,2]
[392614002,1761745849952,-500.0,0.00022739,2]
[392614004,1761745849961,-504.65785401,0.00022739,2]
[392614006,1761745849970,-500.0,0.00022739,2]
[392614008,1761745849979,-500.0,0.00022739,2]
[392614010,1761745849988,-502.47784301,0.00022739,2]
[392614012,1761745849997,-784.26,0.00022739,2]
[392614014,1761745850006,-500.0,0.00022739,2]
[392614016,1761745850015,-500.0,0.00022739,2]
[392614018,1761745850024,-736.88,0.00022739,2]
[392614020,1761745850037,-500.0,0.00022739,2]
[392614022,1761745850047,-1102.52,0.00022739,2]
[392614024,1761745850056,-632.89,0.00022739,2]
[392614026,1761745850066,-216.20049292,0.00022739,2]
[392614042,1761745850204,-500.0,0.00021917,2]
[392614044,1761745850214,-283.79950708,0.00022739,2]
[392614046,1761745850224,-562.00138562,0.00022739,2]
[392614047,1761745850233,-500.0,0.00022739,2]
[392614050,1761745850242,-723.41,0.00022739,2]
[392614051,1761745850251,-500.0,0.00022739,2]
[392614053,1761745850262,-500.0,0.00022739,2]
[392614055,1761745850271,-45.81687805,0.00022739,2]
[392614159,1761745880196,223.6783224,0.00016814,2]
[392614169,1761746367622,223.79010568,0.00016814,2]
[392614170,1761746596159,1331.11,0.00033623,60]
[392614172,1761746837153,-150.0,0.00018378,2]
[392614173,1761746837178,-52.52810013,0.00018656,2]
[392614174,1761746840082,-165.46393467,0.00018656,2]
[392614175,1761746845080,-262.34165517,0.00018656,2]
[392614176,1761746864819,199999.999999,0.00033623,60]
[392614177,1761746868899,6937.4674,0.00033623,60]
[392614178,1761746927651,301.69000155,0.00033624,120]
[392614179,1761746935636,791.0175864,0.00033624,60]
[392614180,1761746960088,-5.66631003,0.00018656,2]
[392614181,1761746960110,-150.0,0.00018657,2]
[392614182,1761746960132,-500.0,0.00018657,2]
[392614183,1761746960153,-500.0,0.00018657,2]
[392614184,1761746960172,-500.0,0.00018657,2]
[392614185,1761746960193,-500.0,0.00018657,2]
[392614186,1761746960216,-1000.0,0.00019029,2]
[392614187,1761746963044,109.65339867,0.0001882,2]
[392614228,1761747032731,-2616.38436577,0.0001882,2]
[392614235,1761747032790,-1392.93183206,0.0001882,2]
[392614237,1761747032800,-160.0,0.00019348,2]
[392614239,1761747032809,-300.0,0.00019817,2]
[392614241,1761747032819,-300.0,0.00019818,2]
[392614243,1761747032828,-300.0,0.00019818,2]
[392614244,1761747032837,-300.0,0.00019818,2]
[392614246,1761747032847,-300.0,0.00019818,2]
[392614248,1761747032856,-300.0,0.00019818,2]
[392614251,1761747032867,-300.0,0.00019818,2]
[392614253,1761747032876,-300.0,0.00019818,2]
[392614255,1761747032886,-300.0,0.00019818,2]
[392614257,1761747032896,-300.0,0.00019818,2]
[392614258,1761747032906,-300.0,0.00019818,2]
[392614260,1761747032916,-300.0,0.00019818,2]
[392614263,1761747032926,-300.0,0.00019818,2]
[392614265,1761747032936,-300.0,0.00019818,2]
[392614268,1761747032946,-300.0,0.00019818,2]
[392614270,1761747032956,-300.0,0.00019818,2]
[392614273,1761747032967,-600.0,0.00019818,2]
[392614276,1761747032976,-5702.4503327,0.0002,2]
[392614278,1761747032987,-336.89214334,0.00020113,2]
[392614280,1761747032996,-1732.01788653,0.00020113,2]
[392614282,1761747033006,-179.18,0.00020203,2]
[392614284,1761747033016,-179.18,0.00020203,2]
[392614286,1761747033026,-295.56923383,0.00020212,2]
[392614288,1761747033036,-303.77388743,0.00020212,2]
[392614290,1761747033045,-500.0,0.00020212,2]
[392614292,1761747033056,-500.0,0.00020212,2]
[392614294,1761747033065,-500.0,0.00020212,2]
[392614297,1761747033076,-500.0,0.00020212,2]
[392614299,1761747033086,-500.0,0.00020212,2]
[392614300,1761747033095,-354.07957569,0.00020212,2]
[392614303,1761747033105,-622.81236451,0.00020212,2]
[392614304,1761747033115,-500.0,0.00020212,2]
[392614306,1761747033123,-500.0,0.00020212,2]
[392614308,1761747033133,-500.0,0.00020212,2]
[392614310,1761747033143,-500.0,0.00020212,2]
[392614312,1761747033152,-500.0,0.00020212,2]
[392614314,1761747033162,-500.0,0.00020212,2]
[392614316,1761747033172,-500.0,0.00020212,2]
[392614318,1761747033181,-470.70425204,0.00020212,2]
[392614320,1761747033190,-500.0,0.00020212,2]
[392614322,1761747033200,-408.67642953,0.00020212,2]
[392614324,1761747033209,-500.0,0.00020212,2]
[392614326,1761747033218,-649.19262648,0.00020212,2]
[392614328,1761747033228,-218.96713911,0.00020212,2]
[392614330,1761747033238,-65711.24685282,0.00020213,2]
[392614342,1761747033340,-2127.83489524,0.00020213,2]
[392614476,1761747038636,-13076.55010321,0.00020213,2]
[392614477,1761747038648,-10400.77279605,0.00020213,2]
[392614478,1761747038660,-15635.54841337,0.00020213,2]
[392614479,1761747038857,-9501.97527257,0.00020213,2]
[392614511,1761747040835,-1706.23160862,0.00020213,2]
[392614512,1761747040847,-91436.00000003,0.00020213,2]
[392614513,1761747040863,-160403.84005809,0.00020213,2]
[392614514,1761747040871,-500.0,0.00020213,2]
[392614515,1761747040880,-500.0,0.00020273,2]
[392614516,1761747040889,-500.0,0.00020273,2]
[392614517,1761747040898,-500.0,0.00020273,2]
[392614518,1761747040907,-329.43474587,0.00020273,2]
[392614519,1761747040916,-500.0,0.00020487,2]
[392614520,1761747040925,-336.89214332,0.00020539,2]
[392614521,1761747040934,-177.0,0.00020657,2]
[392614522,1761747040943,-250.0,0.0002068,2]
[392614523,1761747040953,-250.0,0.0002068,2]
[392614524,1761747040963,-250.0,0.0002068,2]
[392614525,1761747040971,-151.0,0.00020731,7]
[392614526,1761747040981,-201.03993149,0.00020731,7]
[392614527,1761747040990,-196.71922102,0.00020731,7]
[392614528,1761747040999,-151.0,0.00020731,7]
[392614529,1761747041008,-151.157804,0.00020731,2]
[392614530,1761747041019,-500.0,0.00020761,2]
[392614531,1761747041028,-151.0,0.00020786,7]
[392614532,1761747041037,-1000.0,0.00020821,2]
[392614533,1761747041047,-198.0,0.00020841,7]
[392614534,1761747041056,-336.89214332,0.00020965,2]
[392614535,1761747041066,-500.0,0.00021035,2]
[392614536,1761747041075,-1205.545334,0.000211,2]
[392614537,1761747041085,-412.0,0.00021253,2]
[392614538,1761747041094,-331.0,0.00021306,2]
[392614539,1761747041104,-172.0,0.00021306,2]
[392614540,1761747041113,-331.0,0.00021306,2]
[392614541,1761747041123,-331.0,0.00021306,2]
[392614542,1761747041132,-331.0,0.00021306,2]
[392614543,1761747041141,-331.0,0.00021306,2]
[392614544,1761747041150,-331.0,0.00021306,2]
[392614545,1761747041159,-331.0,0.00021306,2]
[392614546,1761747041168,-331.0,0.00021306,2]
[392614547,1761747041178,-324.27057371,0.00021306,2]
[392614548,1761747042650,503.95894735,0.00033624,60]
[392614555,1761747043842,-6.72942629,0.00021306,2]
[392614556,1761747043851,-331.0,0.00021306,2]
[392614557,1761747043860,-331.0,0.00021306,2]